[Event "Early-Titled-Tuesday-Blitz-January-23-2024"]
[Site "Chess.com"]
[Date "2024.01.23"]
[Round "6"]
[White "ChessLebaneseSalah"]
[Black "jaskol95"]
[Result "0-1"]
[WhiteElo "2388"]
[BlackElo "2553"]
[TimeControl "180+1"]
[EndTime "9:06:51 PST"]
[Termination "jaskol95 won by resignation"]

1. e4 {[%clk 0:03:00.9]} 1... d6 {[%clk 0:02:59.4]} 2. Nf3 {[%clk 0:03:00.6]}
2... Nf6 {[%clk 0:02:58.5]} 3. Nc3 {[%clk 0:03:01.2]} 3... e5 {[%clk 0:02:57.5]}
4. d4 {[%clk 0:02:53]} 4... Nbd7 {[%clk 0:02:57.3]} 5. Bd3 {[%clk 0:02:50.7]}
5... Be7 {[%clk 0:02:51.6]} 6. O-O {[%clk 0:02:50.1]} 6... c6 {[%clk 0:02:51.9]}
7. Re1 {[%clk 0:02:49.5]} 7... Qc7 {[%clk 0:02:52.1]} 8. Be3 {[%clk 0:02:46.2]}
8... Ng4 {[%clk 0:02:44.2]} 9. Bd2 {[%clk 0:02:36.2]} 9... Nf8 {[%clk
0:02:35.5]} 10. Qe2 {[%clk 0:02:24.5]} 10... Ng6 {[%clk 0:02:26.4]} 11. Rad1
{[%clk 0:02:23]} 11... O-O {[%clk 0:02:23.9]} 12. h3 {[%clk 0:02:08.1]} 12...
Nf6 {[%clk 0:02:23.6]} 13. a4 {[%clk 0:01:59.9]} 13... Nh5 {[%clk 0:02:12.8]}
14. d5 {[%clk 0:01:31]} 14... Nhf4 {[%clk 0:02:09.4]} 15. Qf1 {[%clk 0:01:29.6]}
15... f5 {[%clk 0:01:51.4]} 16. Bxf4 {[%clk 0:01:18.6]} 16... Nxf4 {[%clk
0:01:50]} 17. exf5 {[%clk 0:01:14.6]} 17... Bxf5 {[%clk 0:01:39.4]} 18. Bxf5
{[%clk 0:01:14.3]} 18... Rxf5 {[%clk 0:01:40.3]} 19. dxc6 {[%clk 0:01:13.1]}
19... bxc6 {[%clk 0:01:40.1]} 20. Qc4+ {[%clk 0:01:04.1]} 20... Kh8 {[%clk
0:01:28.2]} 21. Nd5 {[%clk 0:00:35.8]} 21... Nxd5 {[%clk 0:01:26.4]} 22. Rxd5
{[%clk 0:00:36.2]} 22... Rf4 {[%clk 0:01:22.8]} 23. Qc3 {[%clk 0:00:29.6]} 23...
Qd7 {[%clk 0:01:20.4]} 24. Nxe5 {[%clk 0:00:20.5]} 24... Qe6 {[%clk 0:00:43]}
25. Qxc6 {[%clk 0:00:19.4]} 25... Rc8 {[%clk 0:00:42.8]} 26. Qb7 {[%clk
0:00:14.2]} 26... Rxc2 {[%clk 0:00:13.2]} 27. Nf3 {[%clk 0:00:12.5]} 27... Re2
{[%clk 0:00:10.2]} 28. Rxe2 {[%clk 0:00:09.6]} 28... Qxe2 {[%clk 0:00:11.1]} 29.
Rd2 {[%clk 0:00:07.1]} 29... Qe6 {[%clk 0:00:10.4]} 30. Qxa7 {[%clk 0:00:04.9]}
30... h6 {[%clk 0:00:10.5]} 31. Qe3 {[%clk 0:00:05.2]} 31... Re4 {[%clk
0:00:10.4]} 32. Qd3 {[%clk 0:00:05.5]} 32... d5 {[%clk 0:00:08.8]} 33. Qxd5
{[%clk 0:00:04.9]} 33... Qg6 {[%clk 0:00:08.7]} 34. Qa8+ {[%clk 0:00:04.2]}
34... Kh7 {[%clk 0:00:08.9]} 35. Kh2 {[%clk 0:00:04]} 35... Bd6+ {[%clk
0:00:08.6]} 36. Rxd6 {[%clk 0:00:03.9]} 36... Qxd6+ {[%clk 0:00:08.7]} 37. g3
{[%clk 0:00:04.4]} 37... Re2 {[%clk 0:00:08.2]} 38. Kg2 {[%clk 0:00:03.6]} 38...
Qc5 {[%clk 0:00:07]} 39. Ng5+ {[%clk 0:00:02.4]} 39... hxg5 {[%clk 0:00:06.4]}
40. Qf3 {[%clk 0:00:03]} 40... Qe5 {[%clk 0:00:06]} 41. Qh5+ {[%clk 0:00:03.1]}
41... Kg8 {[%clk 0:00:05.9]} 42. Qf3 {[%clk 0:00:03.5]} 42... Qe4 {[%clk
0:00:06.4]} 43. a5 {[%clk 0:00:03.2]} 43... Qxf3+ {[%clk 0:00:05.8]} 44. Kxf3
{[%clk 0:00:04.1]} 44... Rxb2 {[%clk 0:00:06.4]} 45. Kg4 {[%clk 0:00:04.7]}
45... Ra2 {[%clk 0:00:07]} 46. Kxg5 {[%clk 0:00:03.9]} 46... Rxa5+ {[%clk
0:00:07.7]} 47. Kg4 {[%clk 0:00:04.2]} 47... Kf7 {[%clk 0:00:07.7]} 48. f4
{[%clk 0:00:05.1]} 48... Kf6 {[%clk 0:00:07.8]} 49. h4 {[%clk 0:00:06]} 49... g6
{[%clk 0:00:08.2]} 50. Kf3 {[%clk 0:00:06]} 50... Ra3+ {[%clk 0:00:08.3]} 51.
Kg4 {[%clk 0:00:06.9]} 51... Rb3 {[%clk 0:00:08.5]} 52. Kh3 {[%clk 0:00:06.8]}
52... Kf5 {[%clk 0:00:08.8]} 53. Kg2 {[%clk 0:00:06.9]} 53... Kg4 {[%clk
0:00:09.2]} 54. h5 {[%clk 0:00:07.6]} 54... Rxg3+ {[%clk 0:00:09.5]} 0-1

[Event "Early-Titled-Tuesday-Blitz-January-23-2024"]
[Site "Chess.com"]
[Date "2024.01.23"]
[Round "6"]
[White "Bigfish1995"]
[Black "Natalya_Buksa"]
[Result "1-0"]
[WhiteElo "3118"]
[BlackElo "2597"]
[TimeControl "180+1"]
[EndTime "9:06:52 PST"]
[Termination "Bigfish1995 won by resignation"]

1. e4 {[%clk 0:02:58.8]} 1... c5 {[%clk 0:02:59.7]} 2. c3 {[%clk 0:02:56.7]}
2... d5 {[%clk 0:02:58.4]} 3. exd5 {[%clk 0:02:56.1]} 3... Nf6 {[%clk
0:02:59.1]} 4. Bb5+ {[%clk 0:02:48.9]} 4... Nbd7 {[%clk 0:02:54.5]} 5. d4 {[%clk
0:02:44.8]} 5... Nxd5 {[%clk 0:02:44.7]} 6. dxc5 {[%clk 0:02:39]} 6... e6 {[%clk
0:02:44.6]} 7. c6 {[%clk 0:02:37.9]} 7... bxc6 {[%clk 0:02:41.8]} 8. Bxc6 {[%clk
0:02:37.8]} 8... Rb8 {[%clk 0:02:42.5]} 9. Bxd5 {[%clk 0:02:33.1]} 9... exd5
{[%clk 0:02:42.5]} 10. Ne2 {[%clk 0:02:20.5]} 10... Nf6 {[%clk 0:02:15.4]} 11.
O-O {[%clk 0:02:17.5]} 11... Bd6 {[%clk 0:02:15.9]} 12. h3 {[%clk 0:02:04.2]}
12... O-O {[%clk 0:02:15.4]} 13. Nd2 {[%clk 0:02:00.4]} 13... Bc7 {[%clk
0:01:59.1]} 14. Nf3 {[%clk 0:01:58.6]} 14... Ne4 {[%clk 0:01:57.8]} 15. Qc2
{[%clk 0:01:42.4]} 15... Rb6 {[%clk 0:01:47.3]} 16. Kh1 {[%clk 0:01:19.2]} 16...
Rg6 {[%clk 0:01:42.7]} 17. Bf4 {[%clk 0:01:11.6]} 17... Rf6 {[%clk 0:01:25.2]}
18. Bxc7 {[%clk 0:01:09.2]} 18... Qxc7 {[%clk 0:01:24.9]} 19. Ned4 {[%clk
0:01:07.1]} 19... h6 {[%clk 0:01:18.9]} 20. Rae1 {[%clk 0:01:02]} 20... Qf4
{[%clk 0:01:15.9]} 21. c4 {[%clk 0:00:46.6]} 21... dxc4 {[%clk 0:01:08.2]} 22.
Qxe4 {[%clk 0:00:44.9]} 22... Qb8 {[%clk 0:00:58.6]} 23. Qc2 {[%clk 0:00:41.9]}
23... Ba6 {[%clk 0:00:52.1]} 24. Qc3 {[%clk 0:00:37.5]} 24... Qb6 {[%clk
0:00:52.2]} 25. Re3 {[%clk 0:00:34.2]} 25... Rb8 {[%clk 0:00:49.4]} 26. Ne5
{[%clk 0:00:31]} 26... Rd8 {[%clk 0:00:35.1]} 27. Ndf3 {[%clk 0:00:25.2]} 27...
Kh7 {[%clk 0:00:27.9]} 28. Nxc4 {[%clk 0:00:23.2]} 28... Bxc4 {[%clk 0:00:26.6]}
29. Qxc4 {[%clk 0:00:22.4]} 29... Qxb2 {[%clk 0:00:27.2]} 30. Re2 {[%clk
0:00:21.3]} 30... Qb6 {[%clk 0:00:26.7]} 31. Ne5 {[%clk 0:00:20.4]} 31... Re8
{[%clk 0:00:23]} 32. Ng4 {[%clk 0:00:18.7]} 32... Rfe6 {[%clk 0:00:20.8]} 33.
Rxe6 {[%clk 0:00:18.7]} 33... Rxe6 {[%clk 0:00:21]} 34. Ne3 {[%clk 0:00:18.1]}
34... Qa5 {[%clk 0:00:19.8]} 35. a4 {[%clk 0:00:16.9]} 35... h5 {[%clk
0:00:18.8]} 36. Rd1 {[%clk 0:00:16.8]} 36... g6 {[%clk 0:00:18]} 37. Qf4 {[%clk
0:00:16.5]} 37... Kg7 {[%clk 0:00:17.5]} 38. Rd7 {[%clk 0:00:15.1]} 38... Rf6
{[%clk 0:00:17]} 39. Qd4 {[%clk 0:00:11.5]} 39... Qe1+ {[%clk 0:00:17.5]} 40.
Kh2 {[%clk 0:00:11.6]} 40... Qxf2 {[%clk 0:00:18.1]} 41. Rd6 {[%clk 0:00:10.7]}
41... Qf4+ {[%clk 0:00:15.1]} 42. Qxf4 {[%clk 0:00:10.9]} 42... Rxf4 {[%clk
0:00:16]} 43. Ra6 {[%clk 0:00:11.1]} 43... Re4 {[%clk 0:00:15.7]} 44. Nd5 {[%clk
0:00:11.4]} 44... h4 {[%clk 0:00:15.9]} 45. Rxa7 {[%clk 0:00:11.3]} 45... g5
{[%clk 0:00:16.4]} 46. a5 {[%clk 0:00:11.2]} 46... Rd4 {[%clk 0:00:17]} 47. Ne3
{[%clk 0:00:10.7]} 47... Kg6 {[%clk 0:00:16.6]} 48. Ra6+ {[%clk 0:00:11.1]}
48... f6 {[%clk 0:00:16.7]} 49. Ng4 {[%clk 0:00:11.4]} 49... Ra4 {[%clk
0:00:16]} 50. Rxf6+ {[%clk 0:00:11.8]} 50... Kg7 {[%clk 0:00:16.7]} 51. a6
{[%clk 0:00:11.3]} 51... Ra1 {[%clk 0:00:15.1]} 52. Rb6 {[%clk 0:00:11]} 52...
Ra2 {[%clk 0:00:14.5]} 53. Ne5 {[%clk 0:00:11.3]} 53... g4 {[%clk 0:00:13.5]}
54. hxg4 {[%clk 0:00:10.4]} 54... Ra5 {[%clk 0:00:13.8]} 55. Nf3 {[%clk
0:00:10.1]} 1-0

[Event "Early-Titled-Tuesday-Blitz-January-23-2024"]
[Site "Chess.com"]
[Date "2024.01.23"]
[Round "6"]
[White "Sadykov_Ramil"]
[Black "DvaHrasta"]
[Result "1-0"]
[WhiteElo "2614"]
[BlackElo "2429"]
[TimeControl "180+1"]
[EndTime "9:06:52 PST"]
[Termination "Sadykov_Ramil won on time"]

1. d4 {[%clk 0:03:00.9]} 1... Nf6 {[%clk 0:02:59]} 2. Nc3 {[%clk 0:03:00.9]}
2... d5 {[%clk 0:02:58.3]} 3. Bf4 {[%clk 0:03:01.6]} 3... e6 {[%clk 0:02:57.8]}
4. e3 {[%clk 0:03:01.1]} 4... Bd6 {[%clk 0:02:56.8]} 5. Qf3 {[%clk 0:02:59.4]}
5... O-O {[%clk 0:02:55.1]} 6. g4 {[%clk 0:02:57.6]} 6... c5 {[%clk 0:02:46.7]}
7. g5 {[%clk 0:02:53.2]} 7... cxd4 {[%clk 0:02:23.1]} 8. gxf6 {[%clk 0:02:37.9]}
8... dxc3 {[%clk 0:02:19.5]} 9. Qg3 {[%clk 0:02:33.4]} 9... Qxf6 {[%clk
0:02:02.5]} 10. Bxd6 {[%clk 0:02:32.2]} 10... cxb2 {[%clk 0:02:02.5]} 11. Rb1
{[%clk 0:02:27.9]} 11... Qc3+ {[%clk 0:01:48.9]} 12. Kd1 {[%clk 0:02:27.5]}
12... Nc6 {[%clk 0:01:34.8]} 13. Bxf8 {[%clk 0:02:06.7]} 13... Kxf8 {[%clk
0:01:33.4]} 14. Bd3 {[%clk 0:02:00.4]} 14... Qa3 {[%clk 0:01:22.4]} 15. Nf3
{[%clk 0:01:51.1]} 15... Qxa2 {[%clk 0:01:18.5]} 16. Ke2 {[%clk 0:01:39.1]}
16... a5 {[%clk 0:01:05]} 17. Qd6+ {[%clk 0:01:30.4]} 17... Ke8 {[%clk
0:01:04.3]} 18. Ne5 {[%clk 0:01:07.4]} 18... Ra7 {[%clk 0:00:18.5]} 19. Bb5
{[%clk 0:01:00.7]} 19... f6 {[%clk 0:00:14.7]} 20. Qb8 {[%clk 0:00:19.7]} 20...
fxe5 {[%clk 0:00:06.6]} 21. Qxc8+ {[%clk 0:00:16.8]} 21... Ke7 {[%clk
0:00:05.6]} 22. Qc7+ {[%clk 0:00:16]} 22... Kf6 {[%clk 0:00:04.9]} 23. Rhg1
{[%clk 0:00:13.2]} 23... g6 {[%clk 0:00:04.1]} 24. Bxc6 {[%clk 0:00:10.9]} 24...
Qc4+ {[%clk 0:00:03.2]} 25. Kd2 {[%clk 0:00:08.8]} 25... Qxc6 {[%clk 0:00:01.6]}
26. Qxc6 {[%clk 0:00:06]} 26... bxc6 {[%clk 0:00:01.9]} 27. Rxb2 {[%clk
0:00:06.9]} 27... a4 {[%clk 0:00:01.7]} 28. Ra1 {[%clk 0:00:06.7]} 28... c5
{[%clk 0:00:01.9]} 29. Rba2 {[%clk 0:00:06.4]} 29... Rd7 {[%clk 0:00:01.3]} 30.
Rxa4 {[%clk 0:00:06.7]} 30... e4 {[%clk 0:00:02.2]} 31. Ra5 {[%clk 0:00:05.1]}
31... Kf5 {[%clk 0:00:03.1]} 32. Rxc5 {[%clk 0:00:04.7]} 32... Kg4 {[%clk
0:00:04]} 33. Ra6 {[%clk 0:00:04]} 33... Kf3 {[%clk 0:00:04]} 34. Rxe6 {[%clk
0:00:03.7]} 34... Kxf2 {[%clk 0:00:04.4]} 35. Re5 {[%clk 0:00:03.9]} 35... Kg2
{[%clk 0:00:04.1]} 36. Rcxd5 {[%clk 0:00:03.5]} 36... Rf7 {[%clk 0:00:04.2]} 37.
Rxe4 {[%clk 0:00:03]} 37... Kxh2 {[%clk 0:00:04.1]} 38. c4 {[%clk 0:00:03.6]}
38... Kg3 {[%clk 0:00:03.7]} 39. c5 {[%clk 0:00:03.9]} 39... h5 {[%clk
0:00:03.7]} 40. c6 {[%clk 0:00:03.7]} 40... h4 {[%clk 0:00:04]} 41. Rd7 {[%clk
0:00:03.8]} 41... Rf2+ {[%clk 0:00:03.7]} 42. Kd3 {[%clk 0:00:03.3]} 42... Rf6
{[%clk 0:00:03.4]} 43. Rc4 {[%clk 0:00:03]} 43... h3 {[%clk 0:00:02.6]} 44. c7
{[%clk 0:00:03.6]} 44... h2 {[%clk 0:00:03]} 45. Rh7 {[%clk 0:00:03.6]} 45...
Rd6+ {[%clk 0:00:02.3]} 46. Ke2 {[%clk 0:00:04.1]} 1-0

[Event "Early-Titled-Tuesday-Blitz-January-23-2024"]
[Site "Chess.com"]
[Date "2024.01.23"]
[Round "6"]
[White "supereagles1201"]
[Black "vova-79"]
[Result "1-0"]
[WhiteElo "2377"]
[BlackElo "2549"]
[TimeControl "180+1"]
[EndTime "9:06:52 PST"]
[Termination "supereagles1201 won on time"]

1. d4 {[%clk 0:03:00.9]} 1... d5 {[%clk 0:02:58]} 2. c4 {[%clk 0:03:00.2]} 2...
c6 {[%clk 0:02:57.9]} 3. cxd5 {[%clk 0:03:00.3]} 3... cxd5 {[%clk 0:02:57.6]} 4.
Nc3 {[%clk 0:03:01]} 4... Nf6 {[%clk 0:02:57.8]} 5. Bf4 {[%clk 0:03:01.2]} 5...
Nc6 {[%clk 0:02:57.8]} 6. e3 {[%clk 0:03:01.5]} 6... a6 {[%clk 0:02:57.9]} 7.
Bd3 {[%clk 0:03:00.6]} 7... Bg4 {[%clk 0:02:54.6]} 8. Nge2 {[%clk 0:03:01.1]}
8... Bxe2 {[%clk 0:02:54]} 9. Qxe2 {[%clk 0:03:00.1]} 9... e6 {[%clk 0:02:54.6]}
10. Rc1 {[%clk 0:02:57.7]} 10... Bd6 {[%clk 0:02:52.6]} 11. Bg5 {[%clk
0:02:55.5]} 11... h6 {[%clk 0:02:52.3]} 12. Bh4 {[%clk 0:02:54.8]} 12... Be7
{[%clk 0:02:51.9]} 13. O-O {[%clk 0:02:48.7]} 13... O-O {[%clk 0:02:50.7]} 14.
Na4 {[%clk 0:02:47.3]} 14... Nd7 {[%clk 0:02:48.4]} 15. Bg3 {[%clk 0:02:46.1]}
15... Qa5 {[%clk 0:02:39.7]} 16. Qd1 {[%clk 0:02:28.5]} 16... Rfc8 {[%clk
0:02:15.9]} 17. a3 {[%clk 0:02:28.1]} 17... b5 {[%clk 0:02:06.9]} 18. Nc3 {[%clk
0:02:24.5]} 18... Nb6 {[%clk 0:01:51.7]} 19. Na2 {[%clk 0:02:15.7]} 19... Nc4
{[%clk 0:01:47.8]} 20. Qe2 {[%clk 0:02:11.3]} 20... Qb6 {[%clk 0:01:39.9]} 21.
Bxc4 {[%clk 0:01:35.4]} 21... bxc4 {[%clk 0:01:34.5]} 22. Nc3 {[%clk 0:01:35.2]}
22... Rd8 {[%clk 0:01:13.8]} 23. Rc2 {[%clk 0:01:33.4]} 23... Bd6 {[%clk
0:01:07.9]} 24. Bxd6 {[%clk 0:01:31.3]} 24... Rxd6 {[%clk 0:01:06.4]} 25. Rd1
{[%clk 0:01:25.9]} 25... Rb8 {[%clk 0:01:03.9]} 26. Rdd2 {[%clk 0:01:24.3]}
26... Na5 {[%clk 0:00:56.3]} 27. Qf3 {[%clk 0:01:24.1]} 27... Nb3 {[%clk
0:00:55]} 28. Re2 {[%clk 0:01:24.2]} 28... Na1 {[%clk 0:00:54.9]} 29. Rcd2
{[%clk 0:01:22.7]} 29... Nb3 {[%clk 0:00:55.4]} 30. Rc2 {[%clk 0:01:22.2]} 30...
Qd8 {[%clk 0:00:51]} 31. g3 {[%clk 0:01:18.1]} 31... Qf6 {[%clk 0:00:48.5]} 32.
Qxf6 {[%clk 0:01:16.8]} 32... gxf6 {[%clk 0:00:49.3]} 33. Kg2 {[%clk 0:01:09.8]}
33... f5 {[%clk 0:00:49.3]} 34. f4 {[%clk 0:01:07.2]} 34... Rdb6 {[%clk
0:00:46]} 35. Kf3 {[%clk 0:01:06.8]} 35... h5 {[%clk 0:00:45.1]} 36. h3 {[%clk
0:01:06.2]} 36... Kg7 {[%clk 0:00:44.8]} 37. Rg2 {[%clk 0:01:06.2]} 37... Kf6
{[%clk 0:00:42.6]} 38. Rce2 {[%clk 0:01:01.7]} 38... Nc1 {[%clk 0:00:40.5]} 39.
Rd2 {[%clk 0:00:56.8]} 39... Nd3 {[%clk 0:00:39.9]} 40. Na4 {[%clk 0:00:57.3]}
40... Rb3 {[%clk 0:00:18.6]} 41. Rge2 {[%clk 0:00:53.6]} 41... c3 {[%clk
0:00:16.6]} 42. Nxc3 {[%clk 0:00:46.8]} 42... Nxb2 {[%clk 0:00:16.2]} 43. Nd1
{[%clk 0:00:42.5]} 43... Nc4 {[%clk 0:00:16]} 44. Ra2 {[%clk 0:00:38.2]} 44...
Rd3 {[%clk 0:00:15.5]} 45. Nf2 {[%clk 0:00:37]} 45... Rc3 {[%clk 0:00:13.4]} 46.
g4 {[%clk 0:00:36.4]} 46... hxg4+ {[%clk 0:00:12.1]} 47. hxg4 {[%clk 0:00:37.3]}
47... Rbb3 {[%clk 0:00:11.1]} 48. Nd1 {[%clk 0:00:30]} 48... Rc1 {[%clk
0:00:10.4]} 49. Nf2 {[%clk 0:00:27.5]} 49... fxg4+ {[%clk 0:00:09.1]} 50. Nxg4+
{[%clk 0:00:26.8]} 50... Ke7 {[%clk 0:00:09.8]} 51. Ne5 {[%clk 0:00:24.1]} 51...
Rf1+ {[%clk 0:00:03.6]} 52. Kg2 {[%clk 0:00:23.6]} 52... Rc1 {[%clk 0:00:01.6]}
53. Kf3 {[%clk 0:00:23.2]} 53... Rcc3 {[%clk 0:00:01.5]} 54. Nxc4 {[%clk
0:00:22.1]} 54... dxc4 {[%clk 0:00:01.3]} 55. a4 {[%clk 0:00:21.8]} 55... a5
{[%clk 0:00:01.6]} 56. Rac2 {[%clk 0:00:20]} 1-0

[Event "Early-Titled-Tuesday-Blitz-January-23-2024"]
[Site "Chess.com"]
[Date "2024.01.23"]
[Round "6"]
[White "M1711"]
[Black "ErikRonka"]
[Result "1-0"]
[WhiteElo "2652"]
[BlackElo "2493"]
[TimeControl "180+1"]
[EndTime "9:06:53 PST"]
[Termination "M1711 won on time"]

1. e4 {[%clk 0:03:00.9]} 1... c5 {[%clk 0:02:59.7]} 2. Nf3 {[%clk 0:03:00.8]}
2... e6 {[%clk 0:02:59.8]} 3. d4 {[%clk 0:02:59.8]} 3... cxd4 {[%clk 0:03:00.7]}
4. Bg5 {[%clk 0:03:00]} 4... Qc7 {[%clk 0:02:53]} 5. c3 {[%clk 0:02:59.7]} 5...
d3 {[%clk 0:02:47.5]} 6. Bxd3 {[%clk 0:02:59.4]} 6... d6 {[%clk 0:02:44.3]} 7.
c4 {[%clk 0:02:57.8]} 7... Nd7 {[%clk 0:02:43.2]} 8. Nc3 {[%clk 0:02:57]} 8...
a6 {[%clk 0:02:42.5]} 9. O-O {[%clk 0:02:56.6]} 9... Ngf6 {[%clk 0:02:41.6]} 10.
b4 {[%clk 0:02:55]} 10... Be7 {[%clk 0:02:37.8]} 11. Rc1 {[%clk 0:02:51.2]}
11... O-O {[%clk 0:02:35.6]} 12. a3 {[%clk 0:02:49.7]} 12... b6 {[%clk
0:02:35.6]} 13. Re1 {[%clk 0:02:26.9]} 13... Bb7 {[%clk 0:02:31.6]} 14. h3
{[%clk 0:02:26.9]} 14... Rac8 {[%clk 0:02:30.2]} 15. Qd2 {[%clk 0:02:21.8]}
15... Ne5 {[%clk 0:02:08.7]} 16. Nxe5 {[%clk 0:02:18.5]} 16... dxe5 {[%clk
0:02:09.6]} 17. Be3 {[%clk 0:01:47.5]} 17... Rfd8 {[%clk 0:02:07.1]} 18. Qc2
{[%clk 0:01:44.8]} 18... h6 {[%clk 0:01:29.1]} 19. f3 {[%clk 0:01:26.2]} 19...
Bc6 {[%clk 0:01:15]} 20. Red1 {[%clk 0:01:22.2]} 20... a5 {[%clk 0:01:06.4]} 21.
Qb2 {[%clk 0:01:07.5]} 21... axb4 {[%clk 0:00:57.4]} 22. axb4 {[%clk 0:01:08.4]}
22... Rd7 {[%clk 0:00:42.8]} 23. Bf1 {[%clk 0:01:06.2]} 23... Rxd1 {[%clk
0:00:38.8]} 24. Rxd1 {[%clk 0:01:05.9]} 24... Rd8 {[%clk 0:00:29]} 25. Rxd8+
{[%clk 0:01:01.4]} 25... Qxd8 {[%clk 0:00:27.1]} 26. Na2 {[%clk 0:00:32.4]}
26... Qc7 {[%clk 0:00:05.9]} 27. Kf2 {[%clk 0:00:19]} 27... Nd7 {[%clk
0:00:06.3]} 28. Bd3 {[%clk 0:00:18.3]} 28... Kh7 {[%clk 0:00:03.6]} 29. Ke2
{[%clk 0:00:17.8]} 29... g6 {[%clk 0:00:03.8]} 30. Nc3 {[%clk 0:00:14.5]} 30...
f5 {[%clk 0:00:03.9]} 31. Qa3 {[%clk 0:00:13.4]} 31... Qd6 {[%clk 0:00:03.3]}
32. Na2 {[%clk 0:00:09.5]} 32... Qc7 {[%clk 0:00:02.6]} 33. Qb2 {[%clk
0:00:07.5]} 33... Bb7 {[%clk 0:00:02.6]} 34. Nc3 {[%clk 0:00:07]} 34... Bf6
{[%clk 0:00:02.9]} 35. Nb5 {[%clk 0:00:05.7]} 35... Qc6 {[%clk 0:00:03.5]} 36.
Qc2 {[%clk 0:00:05.3]} 36... Nf8 {[%clk 0:00:02.3]} 37. Qa4 {[%clk 0:00:05.2]}
37... f4 {[%clk 0:00:02.5]} 38. Bf2 {[%clk 0:00:05.3]} 38... Qd7 {[%clk
0:00:03.4]} 39. Nc3 {[%clk 0:00:05]} 39... Bc6 {[%clk 0:00:03.8]} 40. b5 {[%clk
0:00:04.8]} 40... Bb7 {[%clk 0:00:04.2]} 41. Bxb6 {[%clk 0:00:05.2]} 41... Qe7
{[%clk 0:00:02]} 42. Bf2 {[%clk 0:00:04.6]} 42... Nd7 {[%clk 0:00:02.4]} 43. b6
{[%clk 0:00:04.1]} 43... Nc5 {[%clk 0:00:02.3]} 44. Qb5 {[%clk 0:00:04.7]} 44...
Nxd3 {[%clk 0:00:02.5]} 45. Kxd3 {[%clk 0:00:05.3]} 45... Qd8+ {[%clk 0:00:03]}
46. Kc2 {[%clk 0:00:05.2]} 46... Bc8 {[%clk 0:00:03.4]} 47. c5 {[%clk
0:00:05.3]} 47... Bd7 {[%clk 0:00:01.4]} 48. c6 {[%clk 0:00:05.8]} 48... Be8
{[%clk 0:00:01.7]} 49. b7 {[%clk 0:00:05.7]} 1-0

[Event "Early-Titled-Tuesday-Blitz-January-23-2024"]
[Site "Chess.com"]
[Date "2024.01.23"]
[Round "6"]
[White "eagleclaw07"]
[Black "JoliyRoger"]
[Result "1-0"]
[WhiteElo "2642"]
[BlackElo "2468"]
[TimeControl "180+1"]
[EndTime "9:06:53 PST"]
[Termination "eagleclaw07 won on time"]

1. e4 {[%clk 0:02:55.7]} 1... c6 {[%clk 0:02:59.4]} 2. Nf3 {[%clk 0:02:55.2]}
2... d5 {[%clk 0:03:00.3]} 3. e5 {[%clk 0:02:54.5]} 3... Bg4 {[%clk 0:02:59.1]}
4. h3 {[%clk 0:02:54.2]} 4... Bxf3 {[%clk 0:02:58.7]} 5. Qxf3 {[%clk 0:02:55.1]}
5... e6 {[%clk 0:02:59.5]} 6. d4 {[%clk 0:02:53.6]} 6... Nd7 {[%clk 0:03:00]} 7.
Bd3 {[%clk 0:02:53.2]} 7... c5 {[%clk 0:02:53.5]} 8. O-O {[%clk 0:02:50.9]} 8...
cxd4 {[%clk 0:02:49.2]} 9. Qg3 {[%clk 0:02:48.2]} 9... Ne7 {[%clk 0:02:46.3]}
10. Nd2 {[%clk 0:02:46.8]} 10... g6 {[%clk 0:02:31.4]} 11. Nf3 {[%clk
0:02:45.2]} 11... Qb6 {[%clk 0:02:17.8]} 12. Qf4 {[%clk 0:02:25.7]} 12... h6
{[%clk 0:01:56.4]} 13. Nxd4 {[%clk 0:02:19.9]} 13... Nf5 {[%clk 0:01:52.5]} 14.
Nxf5 {[%clk 0:02:14]} 14... gxf5 {[%clk 0:01:52.9]} 15. Be3 {[%clk 0:02:10.6]}
15... Bc5 {[%clk 0:01:53.5]} 16. Rfe1 {[%clk 0:02:00.1]} 16... O-O-O {[%clk
0:01:48.8]} 17. b3 {[%clk 0:01:41.5]} 17... Qc7 {[%clk 0:01:16.4]} 18. Bd2
{[%clk 0:01:25.4]} 18... Be7 {[%clk 0:01:08.9]} 19. Qa4 {[%clk 0:01:09.6]} 19...
Kb8 {[%clk 0:01:09.1]} 20. b4 {[%clk 0:00:58.5]} 20... Nb6 {[%clk 0:00:47.7]}
21. Qb3 {[%clk 0:00:52.3]} 21... Rc8 {[%clk 0:00:48.2]} 22. a4 {[%clk
0:00:46.7]} 22... Nc4 {[%clk 0:00:48.5]} 23. Bf4 {[%clk 0:00:40.4]} 23... Bg5
{[%clk 0:00:48.2]} 24. Bh2 {[%clk 0:00:32.5]} 24... Rhg8 {[%clk 0:00:48.2]} 25.
a5 {[%clk 0:00:27.9]} 25... Be7 {[%clk 0:00:36.8]} 26. Kh1 {[%clk 0:00:18.2]}
26... Nd2 {[%clk 0:00:33.9]} 27. Qa4 {[%clk 0:00:16.3]} 27... Ne4 {[%clk
0:00:33.4]} 28. Bxe4 {[%clk 0:00:14.5]} 28... fxe4 {[%clk 0:00:34]} 29. Rac1
{[%clk 0:00:11.2]} 29... h5 {[%clk 0:00:32.6]} 30. c4 {[%clk 0:00:10.9]} 30...
h4 {[%clk 0:00:25.5]} 31. c5 {[%clk 0:00:09.9]} 31... a6 {[%clk 0:00:24.6]} 32.
b5 {[%clk 0:00:09.4]} 32... axb5 {[%clk 0:00:24.8]} 33. Qxb5 {[%clk 0:00:10.3]}
33... Qc6 {[%clk 0:00:25.5]} 34. Qb3 {[%clk 0:00:09.8]} 34... Bxc5 {[%clk
0:00:21.7]} 35. Bg1 {[%clk 0:00:09.9]} 35... Qa6 {[%clk 0:00:20.6]} 36. Rb1
{[%clk 0:00:07.6]} 36... Ba7 {[%clk 0:00:20.4]} 37. f3 {[%clk 0:00:05.7]} 37...
Bxg1 {[%clk 0:00:19.5]} 38. Rxg1 {[%clk 0:00:06.6]} 38... exf3 {[%clk
0:00:19.3]} 39. Qxf3 {[%clk 0:00:07.5]} 39... Rc7 {[%clk 0:00:19.7]} 40. Qf4
{[%clk 0:00:06.4]} 40... Qxa5 {[%clk 0:00:19.3]} 41. Qxh4 {[%clk 0:00:05.3]}
41... Qc3 {[%clk 0:00:18.5]} 42. Qf4 {[%clk 0:00:05]} 42... Rh8 {[%clk
0:00:16.5]} 43. Rgc1 {[%clk 0:00:04.6]} 1-0